[Event "Late-Titled-Tuesday-Blitz-October-17-2023"]
[Site "Chess.com"]
[Date "2023.10.17"]
[Round "7"]
[White "mfwagnerpeixoto"]
[Black "angryspacevoid"]
[Result "1-0"]
[WhiteElo "2339"]
[BlackElo "2440"]
[TimeControl "180+1"]
[EndTime "15:15:25 PDT"]
[Termination "mfwagnerpeixoto won by resignation"]

1. e4 {[%clk 0:03:00.9]} 1... e6 {[%clk 0:03:00.9]} 2. d4 {[%clk 0:02:59.3]}
2... Ke7 {[%clk 0:03:01.8]} 3. Nc3 {[%clk 0:02:58.3]} 3... Kd6 {[%clk
0:02:59.9]} 4. Nf3 {[%clk 0:02:57.1]} 4... Ke7 {[%clk 0:03:00.4]} 5. Bf4 {[%clk
0:02:51.4]} 5... d6 {[%clk 0:02:58.6]} 6. h3 {[%clk 0:02:49.9]} 6... f6 {[%clk
0:02:59.5]} 7. Bc4 {[%clk 0:02:48.9]} 7... h6 {[%clk 0:03:00.4]} 8. Qe2 {[%clk
0:02:46]} 8... g5 {[%clk 0:03:01]} 9. Bg3 {[%clk 0:02:45.6]} 9... Bg7 {[%clk
0:03:01.6]} 10. O-O-O {[%clk 0:02:45.1]} 10... Nc6 {[%clk 0:03:02.3]} 11. Rhe1
{[%clk 0:02:44.3]} 11... a6 {[%clk 0:03:00.7]} 12. e5 {[%clk 0:02:39.7]} 12...
d5 {[%clk 0:02:58.2]} 13. exf6+ {[%clk 0:02:39.2]} 13... Nxf6 {[%clk 0:02:55.8]}
14. Bb3 {[%clk 0:02:21.4]} 14... Na5 {[%clk 0:02:42.1]} 15. Ne5 {[%clk 0:02:16]}
15... Nxb3+ {[%clk 0:02:37.7]} 16. axb3 {[%clk 0:02:16.9]} 16... Re8 {[%clk
0:02:37.8]} 17. f4 {[%clk 0:02:11.6]} 17... c6 {[%clk 0:02:29.4]} 18. fxg5
{[%clk 0:02:07.6]} 18... hxg5 {[%clk 0:02:30.3]} 19. Rf1 {[%clk 0:02:00.8]}
19... Qa5 {[%clk 0:02:29]} 20. Kb1 {[%clk 0:02:00.7]} 20... Bd7 {[%clk
0:02:24.7]} 21. Qd3 {[%clk 0:01:49.3]} 21... Rg8 {[%clk 0:02:18.1]} 22. Rde1
{[%clk 0:01:32.8]} 22... Raf8 {[%clk 0:02:16]} 23. Ng6+ {[%clk 0:01:28.2]} 23...
Kd8 {[%clk 0:02:07.3]} 24. Nxf8 {[%clk 0:01:28.1]} 24... Rxf8 {[%clk 0:02:08.2]}
25. Qg6 {[%clk 0:01:25.2]} 25... Ne8 {[%clk 0:02:03.5]} 26. Rxf8 {[%clk
0:01:20.8]} 26... Bxf8 {[%clk 0:02:04.4]} 27. Qxg5+ {[%clk 0:01:19.7]} 27... Be7
{[%clk 0:02:02.9]} 28. Qe5 {[%clk 0:01:19.8]} 28... Bf6 {[%clk 0:02:01]} 29.
Qb8+ {[%clk 0:01:14.1]} 29... Ke7 {[%clk 0:02:00.9]} 30. Qxb7 {[%clk 0:01:12.4]}
30... Bxd4 {[%clk 0:01:58.2]} 31. Bh4+ {[%clk 0:01:05.9]} 31... Kd6 {[%clk
0:01:53]} 32. b4 {[%clk 0:00:45.6]} 32... Qb6 {[%clk 0:01:42.1]} 33. Bg3+ {[%clk
0:00:38.4]} 33... Ke7 {[%clk 0:01:40.1]} 34. Qxb6 {[%clk 0:00:33.7]} 34... Bxb6
{[%clk 0:01:41]} 35. h4 {[%clk 0:00:33.9]} 35... Ng7 {[%clk 0:01:39.2]} 36. Bf4
{[%clk 0:00:28.5]} 36... Bf2 {[%clk 0:01:36.9]} 37. Bg5+ {[%clk 0:00:28.5]}
37... Kd6 {[%clk 0:01:36.6]} 38. Rf1 {[%clk 0:00:28.7]} 38... Bd4 {[%clk
0:01:35.6]} 39. g4 {[%clk 0:00:26.2]} 39... e5 {[%clk 0:01:34.5]} 40. h5 {[%clk
0:00:25.2]} 40... Bxg4 {[%clk 0:01:28.7]} 41. Rf6+ {[%clk 0:00:23.1]} 41... Ne6
{[%clk 0:01:25.9]} 42. h6 {[%clk 0:00:21]} 42... Kd7 {[%clk 0:01:20.4]} 43. Bh4
{[%clk 0:00:15.9]} 43... e4 {[%clk 0:01:17.5]} 44. h7 {[%clk 0:00:15.2]} 44...
Bxf6 {[%clk 0:01:13.7]} 45. Bxf6 {[%clk 0:00:16.1]} 45... e3 {[%clk 0:01:13.8]}
46. h8=Q {[%clk 0:00:15.1]} 46... e2 {[%clk 0:01:14.7]} 47. Qh7+ {[%clk
0:00:14.9]} 47... Kd6 {[%clk 0:01:14.3]} 48. Nxe2 {[%clk 0:00:14.4]} 1-0

[Event "Late-Titled-Tuesday-Blitz-October-17-2023"]
[Site "Chess.com"]
[Date "2023.10.17"]
[Round "7"]
[White "Predator0608"]
[Black "kiwibobo"]
[Result "1-0"]
[WhiteElo "2512"]
[BlackElo "2308"]
[TimeControl "180+1"]
[EndTime "15:15:35 PDT"]
[Termination "Predator0608 won by resignation"]

1. e4 {[%clk 0:03:00.9]} 1... e5 {[%clk 0:02:59.3]} 2. Nf3 {[%clk 0:03:01.2]}
2... Nc6 {[%clk 0:02:59.2]} 3. Bc4 {[%clk 0:03:01.8]} 3... Nf6 {[%clk
0:02:59.1]} 4. Ng5 {[%clk 0:03:01.4]} 4... d5 {[%clk 0:02:58.6]} 5. exd5 {[%clk
0:03:02.3]} 5... Na5 {[%clk 0:02:59.2]} 6. Bb5+ {[%clk 0:03:02.8]} 6... c6
{[%clk 0:03:00]} 7. dxc6 {[%clk 0:03:03.7]} 7... bxc6 {[%clk 0:03:00.4]} 8. Bd3
{[%clk 0:03:04.3]} 8... Nd5 {[%clk 0:02:59.9]} 9. Nf3 {[%clk 0:03:03.2]} 9...
Bd6 {[%clk 0:03:00.3]} 10. O-O {[%clk 0:03:02.4]} 10... O-O {[%clk 0:03:00.9]}
11. Re1 {[%clk 0:03:02.2]} 11... f5 {[%clk 0:03:01.6]} 12. Nxe5 {[%clk 0:03:02]}
12... Qf6 {[%clk 0:03:02.3]} 13. Nf3 {[%clk 0:03:02.3]} 13... g5 {[%clk
0:03:03]} 14. c4 {[%clk 0:03:01.2]} 14... Nf4 {[%clk 0:03:00.4]} 15. Bf1 {[%clk
0:03:01]} 15... g4 {[%clk 0:03:00]} 16. d4 {[%clk 0:03:01.4]} 16... gxf3 {[%clk
0:02:59.8]} 17. Qxf3 {[%clk 0:03:02.3]} 17... Ne6 {[%clk 0:02:59.3]} 18. Qc3
{[%clk 0:03:01.9]} 18... Nb7 {[%clk 0:02:50.7]} 19. b4 {[%clk 0:02:52.6]} 19...
Qxd4 {[%clk 0:02:30.7]} 20. c5 {[%clk 0:02:50.4]} 20... Qxc3 {[%clk 0:02:05.8]}
21. Nxc3 {[%clk 0:02:51.3]} 21... Bc7 {[%clk 0:02:00.4]} 22. Bc4 {[%clk
0:02:51.8]} 22... Nd8 {[%clk 0:01:53.5]} 23. Bg5 {[%clk 0:02:46.5]} 23... Kg7
{[%clk 0:01:51.2]} 24. Be7 {[%clk 0:02:41.4]} 24... Re8 {[%clk 0:01:37.3]} 25.
Bh4 {[%clk 0:02:28.7]} 25... a5 {[%clk 0:01:16]} 26. b5 {[%clk 0:02:28.2]} 26...
Kf8 {[%clk 0:00:46.9]} 27. b6 {[%clk 0:02:10.5]} 27... Bf4 {[%clk 0:00:45.7]}
28. Rad1 {[%clk 0:02:07.2]} 28... Bg5 {[%clk 0:00:25.6]} 29. Bxg5 {[%clk
0:01:57.3]} 29... Nxg5 {[%clk 0:00:26.5]} 30. Rxe8+ {[%clk 0:01:46.8]} 30...
Kxe8 {[%clk 0:00:27.4]} 31. Re1+ {[%clk 0:01:47.2]} 31... Nge6 {[%clk
0:00:21.6]} 32. Na4 {[%clk 0:01:31.1]} 32... Rb8 {[%clk 0:00:15.5]} 33. Re5
{[%clk 0:01:28.1]} 33... Kd7 {[%clk 0:00:13]} 34. Rxf5 {[%clk 0:01:25.3]} 34...
Nd4 {[%clk 0:00:11]} 35. Rh5 {[%clk 0:01:23.2]} 35... N8e6 {[%clk 0:00:07.8]}
36. Rxh7+ {[%clk 0:01:23.1]} 36... Ke8 {[%clk 0:00:08]} 37. Rh8+ {[%clk
0:01:21.3]} 37... Kd7 {[%clk 0:00:08.1]} 38. h4 {[%clk 0:00:56.8]} 38... Nf5
{[%clk 0:00:07.1]} 39. Rh7+ {[%clk 0:00:54.9]} 39... Ke8 {[%clk 0:00:06.5]} 40.
Bxe6 {[%clk 0:00:52.8]} 40... Bxe6 {[%clk 0:00:06.2]} 41. Rh8+ {[%clk
0:00:53.1]} 1-0

[Event "Late-Titled-Tuesday-Blitz-October-17-2023"]
[Site "Chess.com"]
[Date "2023.10.17"]
[Round "7"]
[White "frederiksvane"]
[Black "Tiqr777"]
[Result "1-0"]
[WhiteElo "2875"]
[BlackElo "2636"]
[TimeControl "180+1"]
[EndTime "15:15:37 PDT"]
[Termination "frederiksvane won by resignation"]

1. a3 {[%clk 0:03:00.9]} 1... e5 {[%clk 0:02:55.7]} 2. d4 {[%clk 0:02:59.3]}
2... exd4 {[%clk 0:02:55.3]} 3. Qxd4 {[%clk 0:03:00.2]} 3... Nc6 {[%clk
0:02:55.5]} 4. Qd3 {[%clk 0:03:00.8]} 4... Nf6 {[%clk 0:02:55.5]} 5. Nf3 {[%clk
0:03:01.5]} 5... d5 {[%clk 0:02:55.7]} 6. b4 {[%clk 0:03:02.2]} 6... a6 {[%clk
0:02:53]} 7. Bb2 {[%clk 0:03:02.3]} 7... Be7 {[%clk 0:02:53.6]} 8. e3 {[%clk
0:03:02.5]} 8... O-O {[%clk 0:02:53.8]} 9. Be2 {[%clk 0:03:03.2]} 9... Ne4
{[%clk 0:02:54.3]} 10. O-O {[%clk 0:03:03.5]} 10... Bf6 {[%clk 0:02:54.8]} 11.
c3 {[%clk 0:02:42.1]} 11... Bf5 {[%clk 0:02:53.5]} 12. Qd1 {[%clk 0:02:42.6]}
12... h6 {[%clk 0:02:45.9]} 13. Nd4 {[%clk 0:02:42]} 13... Nxd4 {[%clk
0:02:43.4]} 14. cxd4 {[%clk 0:02:42]} 14... Be7 {[%clk 0:02:40.6]} 15. Nc3
{[%clk 0:02:40.8]} 15... Nxc3 {[%clk 0:02:40.7]} 16. Bxc3 {[%clk 0:02:41.7]}
16... Bd6 {[%clk 0:02:41.2]} 17. a4 {[%clk 0:02:41.1]} 17... Re8 {[%clk
0:02:37]} 18. b5 {[%clk 0:02:40.7]} 18... a5 {[%clk 0:02:35.5]} 19. Bb2 {[%clk
0:02:36.9]} 19... b6 {[%clk 0:02:35.1]} 20. Ba3 {[%clk 0:02:37]} 20... Re6
{[%clk 0:02:29.6]} 21. Qd2 {[%clk 0:02:36]} 21... Rg6 {[%clk 0:02:28.2]} 22.
Rfc1 {[%clk 0:02:29]} 22... Bxh2+ {[%clk 0:01:37.8]} 23. Kxh2 {[%clk 0:02:28.7]}
23... Qh4+ {[%clk 0:01:37.9]} 24. Kg1 {[%clk 0:02:28.6]} 24... Rxg2+ {[%clk
0:01:34.6]} 25. Kxg2 {[%clk 0:02:26.5]} 25... Bh3+ {[%clk 0:01:34.4]} 26. Kh2
{[%clk 0:02:24.1]} 26... Bf5+ {[%clk 0:01:06.8]} 27. Kg1 {[%clk 0:02:20.9]}
27... Qg5+ {[%clk 0:01:07]} 28. Kh2 {[%clk 0:02:09.7]} 28... Qh4+ {[%clk
0:01:06.5]} 29. Kg2 {[%clk 0:02:08.1]} 29... Bh3+ {[%clk 0:01:01.4]} 30. Kh1
{[%clk 0:01:57.4]} 30... Bf5+ {[%clk 0:00:43.7]} 31. Kg1 {[%clk 0:01:56]} 31...
Qg5+ {[%clk 0:00:43.4]} 32. Bg4 {[%clk 0:01:53.4]} 32... Qxg4+ {[%clk
0:00:38.6]} 33. Kf1 {[%clk 0:01:53.6]} 33... Qf3 {[%clk 0:00:32.2]} 34. Ke1
{[%clk 0:01:43.3]} 34... Bg4 {[%clk 0:00:24.5]} 35. Qd3 {[%clk 0:01:38.5]} 35...
Re8 {[%clk 0:00:19.8]} 36. Rxc7 {[%clk 0:01:27.8]} 36... Re4 {[%clk 0:00:10.1]}
37. Rac1 {[%clk 0:01:14.6]} 37... f5 {[%clk 0:00:09.2]} 38. Re7 {[%clk
0:01:07.4]} 38... Rxd4 {[%clk 0:00:05.6]} 39. Rxg7+ {[%clk 0:00:56.8]} 39...
Kxg7 {[%clk 0:00:05.6]} 40. Bb2 {[%clk 0:00:55.8]} 40... Kg6 {[%clk 0:00:01.8]}
41. Bxd4 {[%clk 0:00:55.6]} 1-0

[Event "Late-Titled-Tuesday-Blitz-October-17-2023"]
[Site "Chess.com"]
[Date "2023.10.17"]
[Round "7"]
[White "VincentKeymer"]
[Black "MikaelyanArman"]
[Result "1-0"]
[WhiteElo "3091"]
[BlackElo "2895"]
[TimeControl "180+1"]
[EndTime "15:15:42 PDT"]
[Termination "VincentKeymer won on time"]

1. Nf3 {[%clk 0:03:00.9]} 1... d5 {[%clk 0:02:58]} 2. e3 {[%clk 0:03:01.1]} 2...
Nf6 {[%clk 0:02:58]} 3. c4 {[%clk 0:03:01.7]} 3... c6 {[%clk 0:02:58.5]} 4. Nc3
{[%clk 0:03:02.3]} 4... e6 {[%clk 0:02:57.2]} 5. b3 {[%clk 0:03:02.4]} 5... Nbd7
{[%clk 0:02:57.4]} 6. Bb2 {[%clk 0:03:03]} 6... Bd6 {[%clk 0:02:57.4]} 7. Qc2
{[%clk 0:03:03.5]} 7... O-O {[%clk 0:02:37.1]} 8. Be2 {[%clk 0:03:03.7]} 8... b6
{[%clk 0:02:34]} 9. Rg1 {[%clk 0:03:03.3]} 9... Bb7 {[%clk 0:02:33.8]} 10. g4
{[%clk 0:03:03.5]} 10... e5 {[%clk 0:02:25.1]} 11. g5 {[%clk 0:03:03]} 11... Ne8
{[%clk 0:02:24]} 12. O-O-O {[%clk 0:03:03.6]} 12... a5 {[%clk 0:02:10.9]} 13. h4
{[%clk 0:02:51.4]} 13... a4 {[%clk 0:02:05.1]} 14. bxa4 {[%clk 0:02:42.4]} 14...
Qe7 {[%clk 0:01:40.5]} 15. h5 {[%clk 0:02:34]} 15... Ba3 {[%clk 0:01:40.6]} 16.
d4 {[%clk 0:02:05.6]} 16... Bxb2+ {[%clk 0:01:35.5]} 17. Kxb2 {[%clk 0:02:04.2]}
17... Nd6 {[%clk 0:01:34.6]} 18. dxe5 {[%clk 0:01:42.4]} 18... Nxe5 {[%clk
0:01:23.5]} 19. Nxe5 {[%clk 0:01:42.2]} 19... Qxe5 {[%clk 0:01:24.4]} 20. Rg4
{[%clk 0:01:23.1]} 20... Bc8 {[%clk 0:01:08.3]} 21. Rf4 {[%clk 0:01:18.7]} 21...
Bf5 {[%clk 0:01:07]} 22. Qd2 {[%clk 0:01:04.2]} 22... Rxa4 {[%clk 0:01:00.1]}
23. cxd5 {[%clk 0:00:54]} 23... Ne4 {[%clk 0:00:43.7]} 24. Rxe4 {[%clk 0:00:44]}
24... Bxe4 {[%clk 0:00:42.9]} 25. a3 {[%clk 0:00:42.8]} 25... Ra5 {[%clk
0:00:18.4]} 26. f4 {[%clk 0:00:40.3]} 26... Qe8 {[%clk 0:00:16.7]} 27. d6 {[%clk
0:00:38.1]} 27... Bd5 {[%clk 0:00:15.4]} 28. Qd4 {[%clk 0:00:30.6]} 28... Qe6
{[%clk 0:00:04.9]} 29. e4 {[%clk 0:00:23.9]} 29... Qxd6 {[%clk 0:00:05]} 30. Qb4
{[%clk 0:00:23.6]} 30... Qxf4 {[%clk 0:00:02.3]} 31. exd5 {[%clk 0:00:24]} 1-0

[Event "Late-Titled-Tuesday-Blitz-October-17-2023"]
[Site "Chess.com"]
[Date "2023.10.17"]
[Round "7"]
[White "Qvalda"]
[Black "NateSolon"]
[Result "0-1"]
[WhiteElo "2397"]
[BlackElo "2610"]
[TimeControl "180+1"]
[EndTime "15:15:46 PDT"]
[Termination "NateSolon won on time"]

1. Nf3 {[%clk 0:02:32.3]} 1... d5 {[%clk 0:02:58.4]} 2. g3 {[%clk 0:02:32.1]}
2... c6 {[%clk 0:02:58]} 3. c4 {[%clk 0:02:31.5]} 3... Nf6 {[%clk 0:02:57.7]} 4.
Bg2 {[%clk 0:02:30.6]} 4... dxc4 {[%clk 0:02:57.4]} 5. Na3 {[%clk 0:02:29.5]}
5... b5 {[%clk 0:02:56.7]} 6. b3 {[%clk 0:02:28.6]} 6... cxb3 {[%clk 0:02:55.3]}
7. Qxb3 {[%clk 0:02:27.8]} 7... e6 {[%clk 0:02:55.5]} 8. O-O {[%clk 0:02:28.2]}
8... a6 {[%clk 0:02:50.5]} 9. Ne5 {[%clk 0:02:24.3]} 9... Bb7 {[%clk 0:02:50.4]}
10. d4 {[%clk 0:02:22.4]} 10... Bd6 {[%clk 0:02:39.9]} 11. Nac4 {[%clk
0:02:14.3]} 11... Bc7 {[%clk 0:02:29.4]} 12. Ba3 {[%clk 0:02:07.7]} 12... Nd5
{[%clk 0:02:07.8]} 13. Bc5 {[%clk 0:01:33.9]} 13... f6 {[%clk 0:02:04.1]} 14.
Nd3 {[%clk 0:01:28.4]} 14... Bc8 {[%clk 0:02:02.7]} 15. Nd2 {[%clk 0:01:19]}
15... Kf7 {[%clk 0:01:57]} 16. e4 {[%clk 0:01:19]} 16... Nb6 {[%clk 0:01:57.4]}
17. f4 {[%clk 0:01:12.7]} 17... Na4 {[%clk 0:01:50.8]} 18. f5 {[%clk 0:01:11.2]}
18... Nxc5 {[%clk 0:01:49]} 19. dxc5 {[%clk 0:01:07.4]} 19... Qd4+ {[%clk
0:01:48.6]} 20. Kh1 {[%clk 0:01:05.8]} 20... Rd8 {[%clk 0:01:49.5]} 21. Rf3
{[%clk 0:00:52.9]} 21... Qxa1+ {[%clk 0:01:48.7]} 22. Nf1 {[%clk 0:00:48.4]}
22... Qd4 {[%clk 0:01:41.8]} 23. Bh3 {[%clk 0:00:45.5]} 23... Qxe4 {[%clk
0:01:38]} 24. fxe6+ {[%clk 0:00:44.9]} 24... Bxe6 {[%clk 0:01:35.6]} 25. Bxe6+
{[%clk 0:00:42.7]} 25... Qxe6 {[%clk 0:01:36.1]} 26. Qc3 {[%clk 0:00:40]} 26...
Qd5 {[%clk 0:01:30.8]} 27. Nd2 {[%clk 0:00:35.2]} 27... Kg8 {[%clk 0:01:23.9]}
28. Kg2 {[%clk 0:00:34.2]} 28... Nd7 {[%clk 0:01:21.4]} 29. Kh3 {[%clk
0:00:23.9]} 29... Ne5 {[%clk 0:01:18.5]} 30. Nf4 {[%clk 0:00:22.7]} 30... Qxd2
{[%clk 0:01:13.8]} 31. Qb3+ {[%clk 0:00:18.7]} 31... Kh8 {[%clk 0:01:13.1]} 32.
Rf1 {[%clk 0:00:15.4]} 32... Qd7+ {[%clk 0:01:07.8]} 33. Kg2 {[%clk 0:00:14]}
33... Qf7 {[%clk 0:01:05.4]} 34. Qb1 {[%clk 0:00:07.8]} 34... Rd2+ {[%clk
0:01:04]} 35. Kg1 {[%clk 0:00:07]} 35... Rad8 {[%clk 0:00:58.3]} 36. Qe4 {[%clk
0:00:07.6]} 36... Qc4 {[%clk 0:00:54.6]} 37. Qf5 {[%clk 0:00:05.2]} 37... Qxc5+
{[%clk 0:00:47.5]} 38. Kh1 {[%clk 0:00:05]} 38... Qc2 {[%clk 0:00:47.2]} 39. Qh5
{[%clk 0:00:03.2]} 39... Rf2 {[%clk 0:00:42.1]} 40. Rg1 {[%clk 0:00:01.6]} 40...
Qe4+ {[%clk 0:00:40.9]} 0-1

[Event "Late-Titled-Tuesday-Blitz-October-17-2023"]
[Site "Chess.com"]
[Date "2023.10.17"]
[Round "7"]
[White "Tunahan_Makaraci"]
[Black "zverr1"]
[Result "1-0"]
[WhiteElo "2395"]
[BlackElo "2504"]
[TimeControl "180+1"]
[EndTime "15:15:47 PDT"]
[Termination "Tunahan_Makaraci won on time"]

1. e4 {[%clk 0:03:00.9]} 1... c5 {[%clk 0:02:59.2]} 2. c3 {[%clk 0:03:01]} 2...
g6 {[%clk 0:02:59.1]} 3. Nf3 {[%clk 0:03:00.3]} 3... Bg7 {[%clk 0:02:59]} 4. d4
{[%clk 0:03:00.9]} 4... cxd4 {[%clk 0:02:59.9]} 5. cxd4 {[%clk 0:03:01.8]} 5...
d5 {[%clk 0:02:57.6]} 6. e5 {[%clk 0:03:01.6]} 6... a6 {[%clk 0:02:57.7]} 7. h3
{[%clk 0:02:58.4]} 7... Nc6 {[%clk 0:02:57.2]} 8. Nc3 {[%clk 0:02:57.5]} 8... f6
{[%clk 0:02:56.5]} 9. Bf4 {[%clk 0:02:55.9]} 9... Nh6 {[%clk 0:02:56.7]} 10. Bd3
{[%clk 0:02:48.8]} 10... fxe5 {[%clk 0:02:40.9]} 11. Nxe5 {[%clk 0:02:23.5]}
11... O-O {[%clk 0:02:34.7]} 12. Bxh6 {[%clk 0:02:21.3]} 12... Bxh6 {[%clk
0:02:34.9]} 13. O-O {[%clk 0:02:12.8]} 13... Qd6 {[%clk 0:02:23.6]} 14. Qb3
{[%clk 0:01:50.8]} 14... e6 {[%clk 0:01:20.1]} 15. Nxc6 {[%clk 0:01:39]} 15...
bxc6 {[%clk 0:01:21]} 16. Rae1 {[%clk 0:01:37.5]} 16... Bg7 {[%clk 0:01:13.8]}
17. Ne2 {[%clk 0:01:26.4]} 17... Rb8 {[%clk 0:01:05.8]} 18. Qc2 {[%clk
0:01:24.6]} 18... e5 {[%clk 0:01:03.2]} 19. dxe5 {[%clk 0:01:23.5]} 19... Bxe5
{[%clk 0:01:04.1]} 20. b3 {[%clk 0:01:21.7]} 20... Rb4 {[%clk 0:00:51.9]} 21.
Qd2 {[%clk 0:01:14.2]} 21... Rh4 {[%clk 0:00:28.3]} 22. Qg5 {[%clk 0:01:13.3]}
22... Rh5 {[%clk 0:00:27.8]} 23. Qe3 {[%clk 0:01:09.2]} 23... d4 {[%clk
0:00:22.3]} 24. Bc4+ {[%clk 0:01:05.4]} 24... Kh8 {[%clk 0:00:19.2]} 25. Qd2
{[%clk 0:01:01.8]} 25... Bxh3 {[%clk 0:00:12.4]} 26. gxh3 {[%clk 0:00:58.6]}
26... Rxh3 {[%clk 0:00:13.3]} 27. f4 {[%clk 0:00:58.9]} 27... Bg7 {[%clk
0:00:06.5]} 28. Kg2 {[%clk 0:00:56.8]} 28... Rh4 {[%clk 0:00:04.7]} 29. Rf3
{[%clk 0:00:55.4]} 29... Rg4+ {[%clk 0:00:04.1]} 30. Rg3 {[%clk 0:00:53.2]}
30... Qd7 {[%clk 0:00:04.6]} 31. Qd3 {[%clk 0:00:47]} 31... c5 {[%clk
0:00:04.4]} 32. Qf3 {[%clk 0:00:45.6]} 32... Rxg3+ {[%clk 0:00:03.8]} 33. Nxg3
{[%clk 0:00:45.3]} 33... a5 {[%clk 0:00:03]} 34. Ne4 {[%clk 0:00:40.4]} 34...
Bh6 {[%clk 0:00:02.7]} 35. Nxc5 {[%clk 0:00:35]} 35... Qc7 {[%clk 0:00:02]} 36.
Ne6 {[%clk 0:00:34.5]} 1-0

[Event "Late-Titled-Tuesday-Blitz-October-17-2023"]
[Site "Chess.com"]
[Date "2023.10.17"]
[Round "7"]
[White "Yushko_Olga"]
[Black "Thjop"]
[Result "1-0"]
[WhiteElo "2194"]
[BlackElo "2652"]
[TimeControl "180+1"]
[EndTime "15:15:56 PDT"]
[Termination "Yushko_Olga won by checkmate"]

1. d4 {[%clk 0:02:59.7]} 1... Nf6 {[%clk 0:02:58.6]} 2. c4 {[%clk 0:03:00.1]}
2... g6 {[%clk 0:02:58.9]} 3. Nc3 {[%clk 0:03:00.1]} 3... Bg7 {[%clk 0:02:59.8]}
4. Nf3 {[%clk 0:03:00.4]} 4... O-O {[%clk 0:02:59.6]} 5. Bg5 {[%clk 0:03:00.7]}
5... c5 {[%clk 0:02:57.9]} 6. e3 {[%clk 0:03:01.1]} 6... cxd4 {[%clk 0:02:57.3]}
7. exd4 {[%clk 0:03:01.3]} 7... d6 {[%clk 0:02:52.6]} 8. Be2 {[%clk 0:03:01.1]}
8... Nc6 {[%clk 0:02:51.2]} 9. O-O {[%clk 0:03:01.1]} 9... Bg4 {[%clk
0:02:50.9]} 10. h3 {[%clk 0:02:59.5]} 10... Bf5 {[%clk 0:02:49.6]} 11. Re1
{[%clk 0:02:57.7]} 11... Qb6 {[%clk 0:02:45.7]} 12. b3 {[%clk 0:02:53.4]} 12...
Qa5 {[%clk 0:02:44.8]} 13. Bxf6 {[%clk 0:02:48]} 13... Bxf6 {[%clk 0:02:44]} 14.
Nd5 {[%clk 0:02:48.3]} 14... Bg7 {[%clk 0:02:43.4]} 15. Bd3 {[%clk 0:02:45.2]}
15... Be6 {[%clk 0:02:40.7]} 16. Nf4 {[%clk 0:02:40.6]} 16... Bd7 {[%clk
0:02:40]} 17. d5 {[%clk 0:02:38.9]} 17... Ne5 {[%clk 0:02:34.4]} 18. Nd4 {[%clk
0:02:24.4]} 18... Qc3 {[%clk 0:02:22.9]} 19. Bf1 {[%clk 0:02:17.8]} 19... Rfe8
{[%clk 0:02:09.4]} 20. Nfe2 {[%clk 0:02:17.2]} 20... Qa5 {[%clk 0:02:08.7]} 21.
Qc2 {[%clk 0:02:13.2]} 21... Rac8 {[%clk 0:02:07.3]} 22. Rad1 {[%clk 0:02:10.2]}
22... b5 {[%clk 0:02:06.3]} 23. f4 {[%clk 0:02:08.4]} 23... Nxc4 {[%clk
0:01:58.4]} 24. bxc4 {[%clk 0:02:08]} 24... Rxc4 {[%clk 0:01:59.3]} 25. Qd2
{[%clk 0:01:58.2]} 25... Qb6 {[%clk 0:01:57.5]} 26. Kh1 {[%clk 0:01:47.5]} 26...
Rec8 {[%clk 0:01:48.1]} 27. f5 {[%clk 0:01:35.1]} 27... Qc5 {[%clk 0:01:36.2]}
28. Nb3 {[%clk 0:01:31.9]} 28... Qa3 {[%clk 0:01:29.9]} 29. fxg6 {[%clk
0:01:31.3]} 29... hxg6 {[%clk 0:01:25.6]} 30. Ned4 {[%clk 0:01:31.3]} 30... Bf6
{[%clk 0:01:20.3]} 31. Bxc4 {[%clk 0:01:30.6]} 31... bxc4 {[%clk 0:01:20.3]} 32.
Nc1 {[%clk 0:01:27.2]} 32... c3 {[%clk 0:01:17.7]} 33. Qh6 {[%clk 0:01:20.3]}
33... Ba4 {[%clk 0:01:07.8]} 34. Rd3 {[%clk 0:01:18.4]} 34... Qb4 {[%clk
0:01:00.1]} 35. Rf1 {[%clk 0:01:10.6]} 35... Bxd4 {[%clk 0:00:49.8]} 36. Rf4
{[%clk 0:01:00.9]} 36... Rc4 {[%clk 0:00:48.1]} 37. Qh4 {[%clk 0:00:47.8]} 37...
Qb1 {[%clk 0:00:45.2]} 38. Rfxd4 {[%clk 0:00:44.1]} 38... Qxc1+ {[%clk
0:00:41.2]} 39. Kh2 {[%clk 0:00:43.3]} 39... Rxd4 {[%clk 0:00:38.3]} 40. Qxd4
{[%clk 0:00:42.7]} 40... c2 {[%clk 0:00:27.6]} 41. Rc3 {[%clk 0:00:31.8]} 41...
Qd1 {[%clk 0:00:20.5]} 42. Rc8+ {[%clk 0:00:30.5]} 42... Kh7 {[%clk 0:00:18.5]}
43. Qh8# {[%clk 0:00:30.2]} 1-0

[Event "Late-Titled-Tuesday-Blitz-October-17-2023"]
[Site "Chess.com"]
[Date "2023.10.17"]
[Round "7"]
[White "gmcorrales"]
[Black "TanitoluwaAps116"]
[Result "1-0"]
[WhiteElo "2845"]
[BlackElo "2622"]
[TimeControl "180+1"]
[EndTime "15:15:57 PDT"]
[Termination "gmcorrales won by resignation"]

1. e4 {[%clk 0:03:00.9]} 1... c5 {[%clk 0:02:58.2]} 2. Nf3 {[%clk 0:03:00.7]}
2... Nc6 {[%clk 0:02:57.7]} 3. d4 {[%clk 0:03:00.7]} 3... cxd4 {[%clk
0:02:58.6]} 4. Nxd4 {[%clk 0:03:01.3]} 4... Nf6 {[%clk 0:02:59.1]} 5. Nc3 {[%clk
0:03:01.4]} 5... e5 {[%clk 0:02:59.3]} 6. Ndb5 {[%clk 0:03:01.2]} 6... d6 {[%clk
0:02:59.8]} 7. Bg5 {[%clk 0:03:01.6]} 7... a6 {[%clk 0:03:00]} 8. Bxf6 {[%clk
0:03:01.7]} 8... gxf6 {[%clk 0:02:58.5]} 9. Na3 {[%clk 0:03:00.2]} 9... b5
{[%clk 0:02:57.8]} 10. Nd5 {[%clk 0:03:00.3]} 10... f5 {[%clk 0:02:56.3]} 11.
Bd3 {[%clk 0:02:54.9]} 11... Be6 {[%clk 0:02:56.1]} 12. c3 {[%clk 0:02:54]}
12... Bxd5 {[%clk 0:02:56]} 13. exd5 {[%clk 0:02:51.9]} 13... Ne7 {[%clk
0:02:56.5]} 14. Nxb5 {[%clk 0:02:52.5]} 14... Bg7 {[%clk 0:02:57.2]} 15. Na3
{[%clk 0:02:51.8]} 15... O-O {[%clk 0:02:57.3]} 16. O-O {[%clk 0:02:51.2]} 16...
e4 {[%clk 0:02:54.2]} 17. Bc2 {[%clk 0:02:50.9]} 17... Qb6 {[%clk 0:02:53.9]}
18. Bb3 {[%clk 0:02:46.1]} 18... Ng6 {[%clk 0:02:51]} 19. Nc4 {[%clk 0:02:40.3]}
19... Qc5 {[%clk 0:02:42.6]} 20. Ne3 {[%clk 0:02:38.1]} 20... f4 {[%clk
0:02:34.4]} 21. Nf5 {[%clk 0:02:36.6]} 21... Rae8 {[%clk 0:02:32.5]} 22. h4
{[%clk 0:02:27.3]} 22... f3 {[%clk 0:02:00.2]} 23. gxf3 {[%clk 0:02:11.4]} 23...
Qc8 {[%clk 0:01:37.1]} 24. fxe4 {[%clk 0:01:55.1]} 24... Rxe4 {[%clk 0:01:38]}
25. Qf3 {[%clk 0:01:55.3]} 25... Rfe8 {[%clk 0:01:11.1]} 26. Bc2 {[%clk
0:00:36.6]} 26... Rf4 {[%clk 0:00:42]} 27. Qh3 {[%clk 0:00:36.7]} 27... Qc4
{[%clk 0:00:30.3]} 28. Rfe1 {[%clk 0:00:30.6]} 28... Rg4+ {[%clk 0:00:22.5]} 29.
Ng3 {[%clk 0:00:29.6]} 29... Rxe1+ {[%clk 0:00:18.3]} 30. Rxe1 {[%clk
0:00:30.5]} 30... Be5 {[%clk 0:00:17.5]} 31. Re4 {[%clk 0:00:27]} 31... Rxe4
{[%clk 0:00:16.9]} 32. Nxe4 {[%clk 0:00:27.9]} 32... Qe2 {[%clk 0:00:13.8]} 33.
Bd3 {[%clk 0:00:26.9]} 33... Qd1+ {[%clk 0:00:10.4]} 34. Bf1 {[%clk 0:00:21.4]}
34... Qxd5 {[%clk 0:00:10.9]} 35. Qg2 {[%clk 0:00:20.2]} 35... Kf8 {[%clk
0:00:09.7]} 36. Ng5 {[%clk 0:00:18]} 36... Qd1 {[%clk 0:00:06.1]} 37. Qf3 {[%clk
0:00:17.1]} 37... f6 {[%clk 0:00:04.4]} 38. Qxd1 {[%clk 0:00:16.9]} 1-0